fUSD/lending_fUSD_20260329
["ID","MTS","AMOUNT","RATE_DAILY","PERIOD"]
[419047683,1774809048602,-500.0,0.00015973,2]
[419047684,1774809048612,-500.0,0.00015973,2]
[419047685,1774809048622,-500.0,0.00015973,2]
[419047686,1774809048631,-500.0,0.00015973,2]
[419047687,1774809048641,-500.0,0.00015973,2]
[419047688,1774809048652,-500.0,0.00015973,2]
[419047689,1774809048662,-500.0,0.00015973,2]
[419047690,1774809048673,-500.0,0.00015973,2]
[419047691,1774809048682,-167.63692162,0.00015973,2]
[419047692,1774809048692,-500.0,0.00015973,2]
[419047693,1774809048702,-500.0,0.00015973,2]
[419047694,1774809048712,-1000.0,0.00015974,2]
[419047695,1774809048721,-12417.0802399,0.00015983,2]
[419047696,1774809048730,-1000.0,0.00015985,2]
[419047697,1774809048740,-255410.0572669,0.00015985,2]
[419047698,1774809048749,-1207.37184822,0.00015989,2]
[419047699,1774809048759,-1000.0,0.00015989,2]
[419047700,1774809048768,-178.327297,0.00015997,2]
[419047701,1774809048778,-173.174268,0.00015997,2]
[419047702,1774809048787,-684.0040152,0.00015999,2]
[419047703,1774809048796,-666.0,0.00015999,2]
[419047704,1774809048805,-666.0,0.00015999,2]
[419047705,1774809048814,-500.0,0.00015999,2]
[419047706,1774809048823,-500.0,0.00015999,2]
[419047707,1774809048833,-500.0,0.00015999,2]
[419047708,1774809048842,-500.0,0.00015999,2]
[419047709,1774809048851,-282.4,0.00015999,2]
[419047710,1774809048862,-500.0,0.00015999,2]
[419047711,1774809048871,-500.0,0.00015999,2]
[419047712,1774809048881,-500.0,0.00015999,2]
[419047713,1774809048890,-500.0,0.00015999,2]
[419047714,1774809048900,-330.76422672,0.00015999,2]
[419047715,1774809048910,-1028.23,0.00015999,2]
[419047716,1774809048920,-1028.23,0.00015999,2]
[419047717,1774809048931,-1028.23,0.00015999,2]
[419047718,1774809048941,-1028.23,0.00015999,2]
[419047719,1774809048952,-1028.23,0.00015999,2]
[419047720,1774809048962,-1028.23,0.00015999,2]
[419047721,1774809048972,-500.0,0.00015999,2]
[419047722,1774809048981,-279.07,0.00015999,2]
[419047723,1774809048991,-500.0,0.00015999,2]
[419047724,1774809049000,-500.0,0.00015999,2]
[419047725,1774809049009,-500.0,0.00015999,2]
[419047726,1774809049018,-500.0,0.00015999,2]
[419047727,1774809049028,-500.0,0.00015999,2]
[419047728,1774809049038,-500.0,0.00015999,2]
[419047729,1774809049049,-500.0,0.00015999,2]
[419047730,1774809049058,-500.0,0.00015999,2]
[419047731,1774809049068,-500.0,0.00015999,2]
[419047732,1774809049076,-500.0,0.00015999,2]
[419047733,1774809049085,-500.0,0.00015999,2]
[419047734,1774809049093,-1000.0,0.00015999,2]
[419047735,1774809049104,-446146.61524739,0.00016,2]
[419047736,1774809049116,-5788409.59165131,0.00016,2]
[419047737,1774809050437,-218.0,0.00010569,2]
[419047738,1774809050447,-87.11934148,0.00011099,2]
[419047739,1774809050459,-29614.15152405,0.00011099,2]
[419047740,1774809050469,-2000.0,0.00015279,2]
[419047741,1774809050478,-2000.0,0.00015279,2]
[419047742,1774809050488,-2034623.43922044,0.00016,2]
[419047743,1774809050498,-49051.76014197,0.00016,2]
[419047744,1774809050508,-2602.8019804,0.00016,2]
[419047745,1774809050657,-500.0,0.00016,2]
[419047746,1774809050667,-500.0,0.00016,2]
[419047747,1774809050677,-500.0,0.00016,2]
[419047748,1774809050688,-500.0,0.00016,2]
[419047749,1774809050698,-500.0,0.00016,2]
[419047750,1774809050708,-500.0,0.00016,2]
[419047751,1774809050717,-500.0,0.00016,2]
[419047752,1774809050727,-348.6958457,0.00016,2]
[419047753,1774809050737,-1000.0,0.00016,2]
[419047754,1774809050747,-1000.0,0.00016,2]
[419047755,1774809050757,-1000.0,0.00016,2]
[419047756,1774809050767,-1000.0,0.00016,2]
[419047757,1774809050776,-1000.0,0.00016,2]
[419047758,1774809050786,-1000.0,0.00016,2]
[419047759,1774809050796,-1000.0,0.00016,2]
[419047760,1774809050805,-1000.0,0.00016,2]
[419047761,1774809050814,-1000.0,0.00016,2]
[419047762,1774809050824,-1000.0,0.00016,2]
[419047763,1774809050834,-1000.0,0.00016,2]
[419047764,1774809050843,-1000.0,0.00016,2]
[419047765,1774809050853,-1000.0,0.00016,2]
[419047766,1774809050863,-1000.0,0.00016,2]
[419047767,1774809050872,-1000.0,0.00016,2]
[419047768,1774809050882,-1000.0,0.00016,2]
[419047769,1774809050892,-1000.0,0.00016,2]
[419047770,1774809050901,-1000.0,0.00016,2]
[419047771,1774809050911,-1000.0,0.00016,2]
[419047772,1774809050920,-1000.0,0.00016,2]
[419047773,1774809050930,-1000.0,0.00016,2]
[419047774,1774809050939,-482.25822731,0.00016,2]
[419047775,1774809050948,-193.723397,0.00016,2]
[419047776,1774809050958,-193.723397,0.00016,2]
[419047777,1774809050967,-193.723397,0.00016,2]
[419047778,1774809050977,-193.723397,0.00016,2]
[419047779,1774809050986,-193.723397,0.00016,2]
[419047780,1774809050995,-193.723397,0.00016,2]
[419047781,1774809051005,-193.723397,0.00016,2]
[419047782,1774809051015,-193.723397,0.00016,2]
[419047783,1774809051024,-1917925.50090791,0.00016,2]
[419047784,1774809051057,-187.44575692,0.00010413,2]
[419047785,1774809051067,-160.34924308,0.00016,2]
[419047786,1774809051079,-338.004,0.00016,2]
[419047787,1774809051279,-989.58682423,0.00015128,2]
[419047788,1774809051298,-339.41317577,0.00015128,2]
[419047789,1774809051307,-183.94982537,0.00016,2]
[419047790,1774809051318,-1139.33803329,0.00016,2]
[419047791,1774809051330,-2187.10045181,0.00016,2]
[419047792,1774809051346,-2362.12788691,0.00016,2]
[419047793,1774809051439,-350.88499915,0.00011099,2]
[419047794,1774809051495,-3117.834414,0.00011099,2]
[419047795,1774809051519,-26232.55145234,0.00011099,2]
[419047796,1774809051528,-2000.0,0.00015279,2]
[419047797,1774809051538,-2000.0,0.00015279,2]
[419047798,1774809051548,-4394.3303903,0.00016,2]
[419047799,1774809051560,-41503.89060164,0.00016,2]
[419047800,1774809051571,-297.70261111,0.00016,2]
[419047801,1774809051582,-2128.68306836,0.00016,2]
[419047802,1774809051604,-312.41218458,0.00016,2]
[419047803,1774809060179,1100.0,9.441e-05,2]
[419047804,1774809067934,3053.715208,7.945e-05,2]
[419047806,1774809126335,174.0,7.945e-05,3]
[419047807,1774809137135,1200.0,9.8e-05,3]
[419047808,1774809139237,2500.0,9.9e-05,3]
[419047809,1774809141326,3800.0,0.0001,3]
[419047810,1774809168967,500.0,9.6e-05,3]
[419047811,1774809171050,1000.0,9.7e-05,3]
[419047812,1774809173139,1600.0,9.8e-05,3]
[419047813,1774809175231,2100.0,9.9e-05,3]
[419047814,1774809180074,2700.0,0.0001,3]
[419047815,1774809184674,1200.0,7.731e-05,2]
[419047816,1774809185194,1304.73,7.729e-05,2]
[419047817,1774809185735,1120.0,7.829e-05,2]
[419047818,1774809186249,1700.0,7.875e-05,2]
[419047819,1774809186761,2200.0,8.016e-05,2]
[419047820,1774809187648,1877.82,8.057e-05,2]
[419047821,1774809187822,1030.0,8.147e-05,2]
[419047822,1774809188334,1981.28,8.24e-05,2]
[419047823,1774809188851,1085.03,8.316e-05,2]
[419047824,1774809189362,2600.0,8.362e-05,2]
[419047825,1774809189877,1425.46,8.524e-05,2]
[419047826,1774809191930,1476.74,8.611e-05,2]
[419047827,1774809192014,1500.0,8.558e-05,2]
[419047828,1774809192168,3110.0,8.676e-05,2]
[419047829,1774809192319,2600.0,8.834e-05,2]
[419047830,1774809192673,2300.0,8.788e-05,2]
[419047831,1774809193191,1250.0,8.901e-05,2]
[419047832,1774809193703,1820.0,9.004e-05,2]
[419047833,1774809194219,1953.42,9.124e-05,2]
[419047834,1774809194728,1771.21,9.069e-05,2]
[419047836,1774809256239,353.06,8.818e-05,2]
[419047837,1774809284753,1852.42,9.96e-05,2]
[419047838,1774809292308,496.70593794,0.00010015,2]
[419047839,1774809307635,154.0,0.00010015,3]
[419047841,1774809367746,13208.8292049,7.945e-05,2]
[419047842,1774809367773,5443.8933061,7.945e-05,2]
[419047843,1774809378776,2290.0,9.727e-05,2]
[419047844,1774809390409,327.11,9.704e-05,2]
[419047845,1774809390731,5695.5,9.704e-05,2]
[419047846,1774809570527,-228.20571621,0.0001002,2]
[419047847,1774809570611,-1043.5592568,0.00010027,2]
[419047848,1774809573420,-10000.01,0.00010027,2]
[419047849,1774809580725,185.71,0.00019875,120]
[419047850,1774809582490,-10000.01,0.00010027,2]
[419047851,1774809626767,1200.0,9.624e-05,2]
[419047852,1774809726653,500.0,9.333e-05,2]
[419047853,1774809807254,7991.9,9.299e-05,2]
[419047854,1774809812412,308.11,9.044e-05,2]
[419047855,1774809812439,511.38,9.044e-05,2]
[419047856,1774809822056,165.0,6.915e-05,2]
[419047857,1774809824416,200.0,9.299e-05,2]
[419047858,1774809873254,443.46,8.935e-05,2]
[419047859,1774809874055,1072.85,9.308e-05,2]
[419047860,1774809874289,800.0,9.558e-05,2]
[419047861,1774809874817,650.0,9.766e-05,2]
[419047862,1774809929590,273.54030607,9.92e-05,30]
[419047863,1774809953145,-4500.0,9.891e-05,2]
[419047864,1774809978175,-2000.0,9.891e-05,2]
[419047865,1774810001500,820.0,9.394e-05,2]
[419047866,1774810015576,5070.91,9.206e-05,2]
[419047867,1774810025257,-2653.922,9.891e-05,2]
[419047868,1774810025282,-451.15185509,9.891e-05,2]
[419047869,1774810025308,-5000.0,9.891e-05,2]
[419047870,1774810025335,-1100.0,9.891e-05,2]
[419047871,1774810025361,-250.0,9.92e-05,2]
[419047872,1774810025388,-4507.14822394,9.923e-05,2]
[419047873,1774810025415,-150.0,9.949e-05,2]
[419047874,1774810025442,-250.0,9.963e-05,2]
[419047875,1774810025467,-1852.87969128,9.975e-05,2]
[419047876,1774810025494,-1200.0,9.999e-05,2]
[419047877,1774810025520,-184.44384423,0.0001,2]
[419047878,1774810025546,-1400.45438546,0.0001,2]
[419047879,1774810028686,298.47,9.406e-05,2]
[419047880,1774810031382,500.0,9.376e-05,2]
[419047881,1774810058641,1100.0,9.6e-05,3]
[419047882,1774810060567,2300.0,9.7e-05,3]
[419047883,1774810062758,3400.0,9.8e-05,3]
[419047884,1774810087962,13208.829205,7.945e-05,2]
[419047885,1774810125152,1170.0,7.721e-05,2]
[419047886,1774810125654,448.51,8.416e-05,2]
[419047887,1774810126171,1279.23,9.148e-05,2]
[419047888,1774810146642,177.0,9.148e-05,3]
[419047889,1774810207119,155.0,9.148e-05,3]
[419047894,1774810231757,-969.80549567,9.9e-05,3]
[419047895,1774810231810,-916.58075696,9.9e-05,3]
[419047897,1774810233599,-2713.61374737,9.9e-05,3]
[419047898,1774810233609,-300.0,9.998e-05,2]
[419047899,1774810233618,-300.0,9.998e-05,2]
[419047900,1774810233628,-1200.0,9.998e-05,2]
[419047901,1774810233638,-260.0,9.998e-05,2]
[419047902,1774810233648,-300.0,9.999e-05,2]
[419047903,1774810233658,-300.0,9.999e-05,2]
[419047904,1774810233668,-1200.0,9.999e-05,2]
[419047905,1774810233678,-375.60210095,0.0001,2]
[419047906,1774810233688,-5700.0,0.0001,3]
[419047907,1774810233698,-243.53234881,0.0001,2]
[419047908,1774810233710,-166.0,0.0001,2]
[419047909,1774810233720,-250.0,0.00010003,2]
[419047910,1774810233731,-1890.0,0.00010027,2]
[419047911,1774810233740,-46953.08863825,0.00010123,2]
[419047912,1774810233753,-4358.46771406,0.00010123,2]
[419047913,1774810233765,-98090.03999572,0.00010123,2]
[419047914,1774810233776,-208141.86530771,0.00010123,2]
[419047916,1774810238123,-915.68180285,0.00010123,2]
[419047917,1774810238136,-2141540.85654141,0.00010123,2]
[419047918,1774810238146,-361.9,0.00010134,2]
[419047919,1774810238155,-500.0,0.00010173,2]
[419047920,1774810238165,-500.0,0.00010173,2]
[419047921,1774810238175,-500.0,0.00010173,2]
[419047922,1774810238185,-500.0,0.00010173,2]
[419047923,1774810238195,-500.0,0.00010173,2]
[419047924,1774810238205,-370.62839673,0.00010173,2]
[419047925,1774810238214,-500.0,0.00010173,2]
[419047926,1774810238224,-239.29671619,0.000102,2]
[419047927,1774810238233,-413.98230423,0.000102,2]
[419047928,1774810238243,-382.60183333,0.000102,2]
[419047929,1774810238253,-2500.0,0.00010223,2]
[419047930,1774810238263,-1024.01701626,0.00010223,2]
[419047931,1774810238272,-570.73643002,0.00010223,2]
[419047932,1774810238282,-177.96010828,0.00010223,2]
[419047933,1774810238292,-489.9,0.00010257,2]
[419047934,1774810238301,-208.7575855,0.00010273,2]
[419047935,1774810238310,-800.0,0.00010289,2]
[419047936,1774810238320,-150.0,0.000103,2]
[419047937,1774810238331,-500.0,0.0001031,2]
[419047938,1774810238341,-500.0,0.0001031,2]
[419047939,1774810238350,-500.0,0.0001031,2]
[419047940,1774810238360,-500.0,0.0001031,2]
[419047941,1774810238369,-500.0,0.0001031,2]
[419047942,1774810238379,-500.0,0.0001031,2]
[419047943,1774810238389,-500.0,0.0001031,2]
[419047944,1774810238398,-500.0,0.0001031,2]
[419047945,1774810238408,-500.0,0.0001031,2]
[419047946,1774810238418,-500.0,0.0001031,2]
[419047947,1774810238428,-500.0,0.0001031,2]
[419047948,1774810238437,-200.0,0.0001031,2]
[419047949,1774810238446,-151.0,0.0001031,2]
[419047950,1774810238456,-151.0,0.0001031,2]
[419047951,1774810238466,-151.0,0.0001031,2]
[419047952,1774810238476,-151.0,0.0001031,2]
[419047953,1774810238485,-151.0,0.0001031,2]
[419047954,1774810238494,-151.0,0.0001031,2]
[419047955,1774810238504,-151.0,0.0001031,2]
[419047956,1774810238514,-151.0,0.0001031,2]
[419047957,1774810238523,-151.0,0.0001031,2]
[419047958,1774810238532,-500.0,0.0001031,2]
[419047959,1774810238542,-151.0,0.0001031,2]
[419047960,1774810238552,-151.0,0.0001031,2]
[419047961,1774810238561,-151.0,0.0001031,2]
[419047962,1774810238571,-151.0,0.0001031,2]
[419047963,1774810238581,-151.0,0.0001031,2]
[419047964,1774810238591,-151.0,0.0001031,2]
[419047965,1774810238600,-151.0,0.0001031,2]
[419047966,1774810238610,-151.0,0.0001031,2]
[419047967,1774810238620,-151.0,0.0001031,2]
[419047968,1774810238630,-151.0,0.0001031,2]
[419047969,1774810238639,-151.0,0.0001031,2]
[419047971,1774810238649,-151.0,0.0001031,2]
[419047973,1774810238658,-151.0,0.0001031,2]
[419047975,1774810238668,-151.0,0.0001031,2]
[419047977,1774810238678,-151.0,0.0001031,2]
[419047979,1774810238687,-151.0,0.0001031,2]
[419047980,1774810238697,-151.0,0.0001031,2]
[419047981,1774810238706,-151.0,0.0001031,2]
[419047982,1774810238716,-151.0,0.0001031,2]
[419047983,1774810238726,-151.0,0.0001031,2]
[419047984,1774810238736,-151.0,0.0001031,2]
[419047985,1774810238746,-151.0,0.0001031,2]
[419047986,1774810238756,-151.0,0.0001031,2]
[419047987,1774810238765,-264.31611832,0.0001031,2]
[419047988,1774810238775,-500.0,0.0001031,2]
[419047989,1774810238784,-973.92,0.00010316,2]
[419047990,1774810238794,-164.061114,0.0001032,2]
[419047992,1774810238804,-151.0,0.0001032,2]
[419047994,1774810238813,-1000.55187123,0.00010321,2]
[419047995,1774810238823,-4566.50840311,0.00010322,2]
[419047996,1774810238832,-1087.96536462,0.00010322,3]
[419047997,1774810238842,-1000.0,0.00010323,2]
[419047998,1774810238852,-1500000.0,0.00010323,2]
[419047999,1774810238862,-500.0,0.00010373,2]
[419048000,1774810238872,-500.0,0.00010373,2]
[419048001,1774810238882,-171.50157608,0.00010373,2]
[419048002,1774810238892,-500.0,0.00010373,2]
[419048003,1774810238901,-500.0,0.00010373,2]
[419048004,1774810238912,-500.0,0.00010373,2]
[419048005,1774810238922,-500.0,0.00010373,2]
[419048006,1774810238931,-500.0,0.00010373,2]
[419048007,1774810238941,-500.0,0.00010373,2]
[419048008,1774810238951,-500.0,0.00010373,2]
[419048009,1774810238961,-167.63692162,0.00010373,2]
[419048010,1774810238971,-500.0,0.00010373,2]
[419048011,1774810238980,-500.0,0.00010373,2]
[419048012,1774810238991,-500.0,0.00010373,2]
[419048013,1774810239000,-4576.961,0.00010386,2]
[419048014,1774810239010,-580.59,0.0001041,2]
[419048015,1774810239020,-4999.99,0.00010475,2]
[419048016,1774810239029,-1901.65,0.00010475,2]
[419048017,1774810239039,-14101.42,0.00010475,2]
[419048018,1774810239048,-77037.16,0.00010475,2]
[419048019,1774810239058,-1619.68,0.00010475,2]
[419048020,1774810239067,-1548.82,0.00010475,2]
[419048021,1774810239077,-299.99,0.00010475,2]
[419048022,1774810239087,-2115.96,0.00010475,2]
[419048023,1774810239096,-9999.99,0.00010475,2]
[419048024,1774810239106,-150.99,0.00010475,2]
[419048025,1774810239115,-2997.56,0.00010475,2]
[419048026,1774810239125,-94739.83,0.00010475,2]
[419048027,1774810239134,-7603.56,0.00010475,2]
[419048028,1774810239144,-1842.25,0.00010475,2]
[419048029,1774810239154,-999.99,0.00010475,2]
[419048030,1774810239163,-517.77,0.00010475,2]
[419048031,1774810239173,-499.99,0.00010475,2]
[419048032,1774810239183,-9999.99,0.00010475,2]
[419048033,1774810239194,-5081.68,0.00010475,2]
[419048034,1774810239204,-8455.71,0.00010475,2]
[419048035,1774810239214,-9999.99,0.00010475,2]
[419048036,1774810239224,-150.99,0.00010475,2]
[419048037,1774810239233,-9999.99,0.00010475,2]
[419048038,1774810239243,-23348.11,0.00010475,2]
[419048039,1774810239252,-8618.44,0.00010475,2]
[419048040,1774810239262,-9999.99,0.00010475,2]
[419048041,1774810239272,-1600.0,0.00010526,2]
[419048042,1774810239282,-910.0,0.00010573,2]
[419048043,1774810239291,-500.0,0.00010584,2]
[419048044,1774810239310,-973.92,0.0001059,2]
[419048045,1774810239322,-1217.5,0.00010686,2]
[419048046,1774810239331,-1000.0,0.00010721,2]
[419048047,1774810239341,-1000.0,0.00010721,2]
[419048048,1774810239351,-1000.0,0.00010721,2]
[419048049,1774810239360,-1000.0,0.00010721,2]
[419048050,1774810239370,-1000.0,0.00010721,2]
[419048051,1774810239380,-1000.0,0.00010721,2]
[419048052,1774810239389,-1970.0,0.00010786,2]
[419048053,1774810239400,-200.0,0.00010858,2]
[419048054,1774810239409,-500.0,0.00010858,2]
[419048055,1774810239419,-973.92,0.00010864,2]
[419048056,1774810239429,-763.0,0.00010871,2]
[419048057,1774810239439,-193.0,0.0001088,2]
[419048058,1774810239449,-5000.0,0.0001088,2]
[419048059,1774810239461,-250.0,0.0001088,2]
[419048060,1774810239472,-5000.0,0.0001089,2]
[419048061,1774810239482,-873.0,0.00010892,2]
[419048062,1774810239492,-9606.51051487,0.000109,2]
[419048063,1774810239502,-1390.0,0.00010914,2]
[419048064,1774810239512,-1000.0,0.00010921,2]
[419048065,1774810239521,-1000.0,0.00010921,2]
[419048066,1774810239532,-697.01734564,0.00010921,2]
[419048067,1774810239542,-1000.0,0.00010921,2]
[419048068,1774810239552,-1092.36520232,0.00010921,2]
[419048069,1774810239562,-1045.4146401,0.00010921,2]
[419048070,1774810239571,-502.67280258,0.00010921,2]
[419048071,1774810239581,-1000.0,0.00010921,2]
[419048072,1774810239591,-1000.0,0.00010921,2]
[419048073,1774810239600,-684.0,0.00010936,2]
[419048074,1774810239611,-292.0,0.00010957,2]
[419048075,1774810239621,-500.0,0.00010959,2]
[419048076,1774810239631,-150.0,0.00010959,2]
[419048077,1774810239642,-523.0,0.00010979,2]
[419048078,1774810239653,-420.0,0.00010998,2]
[419048079,1774810239663,-1680.0,0.00010998,2]
[419048080,1774810239674,-300.0,0.00010999,2]
[419048081,1774810239684,-420.0,0.00010999,2]
[419048082,1774810239693,-1680.0,0.00010999,2]
[419048083,1774810239703,-3282.16832312,0.00011,2]
[419048084,1774810239713,-250.0,0.00011,2]
[419048085,1774810239723,-827.0,0.00011001,2]
[419048086,1774810239732,-1102.0,0.00011023,2]
[419048087,1774810239742,-9606.5105148,0.00011034,2]
[419048088,1774810239751,-374.5,0.00011056,2]
[419048089,1774810239761,-1900.0,0.0001108,2]
[419048090,1774810239771,-189.38,0.00011092,2]
[419048091,1774810239780,-27836.81130679,0.00011099,2]
[419048092,1774810239790,-27836.81130673,0.00011099,2]
[419048093,1774810239800,-27836.81130673,0.00011099,2]
[419048094,1774810239810,-26722.43184479,0.00011099,2]
[419048095,1774810239819,-3659.16,0.00011122,2]
[419048096,1774810239829,-973.92,0.00011138,2]
[419048097,1774810239839,-1024.01701625,0.00011169,2]
[419048098,1774810239849,-150.0,0.00011233,2]
[419048099,1774810239858,-1500.0,0.00011268,2]
[419048100,1774810239868,-1500.0,0.00011268,2]
[419048101,1774810239878,-500.0,0.00011268,2]
[419048102,1774810239888,-700.06015101,0.00011268,2]
[419048103,1774810239898,-1001.58195524,0.00011268,2]
[419048104,1774810239909,-1500.0,0.00011268,2]
[419048105,1774810239919,-177.293,0.0001128,2]
[419048106,1774810239929,-1220.0,0.0001133,2]
[419048107,1774810239939,-27836.81130673,0.00011349,2]
[419048108,1774810239949,-1525.6536,0.00011375,2]
[419048109,1774810239959,-200.0,0.00011406,2]
[419048110,1774810239970,-973.92,0.00011412,2]
[419048111,1774810239980,-500.0,0.00011468,2]
[419048112,1774810239990,-1003.28384066,0.00011468,2]
[419048113,1774810239999,-1500.0,0.00011468,2]
[419048114,1774810240010,-26722.43184479,0.000115,2]
[419048115,1774810240019,-2618.66,0.00011512,2]
[419048116,1774810240029,-769.17,0.00011588,2]
[419048117,1774810240039,-500.0,0.00011589,2]
[419048118,1774810240049,-973.92,0.00011686,2]
[419048119,1774810240059,-196.9129,0.000117,2]
[419048120,1774810240068,-27836.81130673,0.00011724,2]
[419048121,1774810240078,-2000.0,0.00011816,2]
[419048122,1774810240088,-1000.0,0.00011816,2]
[419048123,1774810240098,-2000.0,0.00011816,2]
[419048124,1774810240108,-155.0,0.00011844,2]
[419048125,1774810240118,-9606.5105148,0.00011845,2]
[419048126,1774810240127,-370.663819,0.00011857,2]
[419048127,1774810240142,-3403.816216,0.00011857,2]
[419048128,1774810240152,-1837.399638,0.00011857,2]
[419048129,1774810240163,-588.313914,0.00011857,2]
[419048130,1774810240172,-1725.192283,0.00011858,2]
[419048131,1774810240182,-798.426026,0.00011873,2]
[419048132,1774810240192,-26722.43184479,0.00011925,2]
[419048133,1774810240202,-200.0,0.00011954,2]
[419048134,1774810240212,-973.92,0.0001196,2]
[419048135,1774810240223,-200.0,0.00012,2]
[419048136,1774810240233,-2000.0,0.00012016,2]
[419048137,1774810240243,-221.0,0.00012098,2]
[419048138,1774810240253,-2351.0,0.00012098,2]
[419048139,1774810240263,-587.0,0.00012099,2]
[419048140,1774810240274,-27836.81130673,0.00012099,2]
[419048141,1774810240284,-3088.865159,0.00012104,2]
[419048142,1774810240293,-1024.01701625,0.00012115,2]
[419048143,1774810240303,-973.92,0.00012234,2]
[419048144,1774810240314,-26722.43184479,0.00012351,2]
[419048145,1774810240324,-2001.46003451,0.00012364,2]
[419048146,1774810240334,-2500.0,0.00012364,2]
[419048147,1774810240346,-526.419388,0.00012403,2]
[419048148,1774810240356,-155.0,0.00012408,2]
[419048149,1774810240367,-500.0,0.00012466,2]
[419048150,1774810240376,-27836.81130673,0.00012474,2]
[419048151,1774810240387,-200.0,0.00012502,2]
[419048152,1774810240396,-1009.58099597,0.00012564,2]
[419048153,1774810240407,-9606.5105148,0.00012656,2]
[419048154,1774810240418,-26722.43184479,0.00012776,2]
[419048155,1774810240429,-27836.81130673,0.0001285,2]
[419048156,1774810240439,-10000.0,0.00012861,2]
[419048157,1774810240448,-3000.0,0.00012912,2]
[419048158,1774810240458,-250.0,0.00013,2]
[419048159,1774810240468,-258.498,0.00013,2]
[419048160,1774810240478,-151.0,0.00013049,2]
[419048161,1774810240487,-200.0,0.0001305,2]
[419048162,1774810240497,-1024.01701625,0.00013062,2]
[419048163,1774810240507,-570.73643002,0.00013062,2]
[419048164,1774810240517,-250.0,0.00013081,2]
[419048165,1774810240527,-2545.87602543,0.00013087,2]
[419048166,1774810240537,-1000.55187123,0.0001316,2]
[419048167,1774810240547,-26722.43184479,0.00013202,2]
[419048168,1774810240558,-27836.81130673,0.00013225,2]
[419048169,1774810240569,-189.38,0.00013304,2]
[419048170,1774810240579,-3292.0,0.00013307,2]
[419048171,1774810240589,-180.28,0.00013308,2]
[419048172,1774810240599,-823.0,0.00013309,2]
[419048173,1774810240609,-2750.6,0.00013356,2]
[419048174,1774810240620,-2750.6,0.00013356,2]
[419048175,1774810240630,-2750.6,0.00013356,2]
[419048176,1774810240642,-2750.6,0.00013356,2]
[419048177,1774810240652,-2750.6,0.00013356,2]
[419048178,1774810240662,-2750.6,0.00013356,2]
[419048179,1774810240672,-2750.6,0.00013356,2]
[419048180,1774810240683,-2750.6,0.00013356,2]
[419048181,1774810240693,-2750.6,0.00013356,2]
[419048182,1774810240703,-2139.53398762,0.0001346,2]
[419048183,1774810240713,-9606.5105148,0.00013467,2]
[419048184,1774810240723,-155.0,0.00013536,2]
[419048185,1774810240733,-5695.5,0.00013585,2]
[419048186,1774810240743,-200.0,0.00013598,2]
[419048187,1774810240753,-27836.81130673,0.000136,2]
[419048188,1774810240763,-26722.43184479,0.00013627,2]
[419048189,1774810240773,-500.0,0.00013695,2]
[419048190,1774810240783,-500.0,0.00013695,2]
[419048191,1774810240793,-500.0,0.00013695,2]
[419048192,1774810240804,-500.0,0.00013695,2]
[419048193,1774810240814,-500.0,0.00013695,2]
[419048194,1774810240824,-500.0,0.00013695,2]
[419048195,1774810240835,-500.0,0.00013695,2]
[419048196,1774810240845,-500.0,0.00013695,2]
[419048197,1774810240855,-500.0,0.00013695,2]
[419048203,1774810241408,-500.0,0.00013695,2]